[Event "CCT Chessable Masters Play-In 2025"]
[Site "Online"]
[Date "2025.02.17"]
[Round "3.78"]
[White "Sethuraman, S.P."]
[Black "Gurevich, Dmitry"]
[Result "1-0"]
[ECO "B64"]
[WhiteElo "2557"]
[BlackElo "2347"]
[PlyCount "77"]
[EventDate "2025.02.13"]
[EventType "swiss"]
[EventCountry "NET"]
[TimeControl "600"]
[WhiteClock "0:02:47"]
[BlackClock "0:01:08"]

1. e4 {[%emt 0:00:01]} c5 {[%emt 0:00:05]} 2. Nf3 {[%emt 0:00:01]} d6 {[%emt 0:00:03]} 3. d4 {[%emt 0:00:01]} cxd4 {[%emt 0:00:02]} 4. Nxd4 {[%emt 0:00:01]} Nf6 {[%emt 0:00:02]} 5. Nc3 {[%emt 0:00:00]} Nc6 {[%emt 0:00:01]} 6. Bg5 {[%emt 0:00:02]} e6 {[%emt 0:00:04]} 7. Qd2 {[%emt 0:00:01]} Be7 {[%emt 0:00:02]} 8. O-O-O {[%emt 0:00:08]} O-O {[%emt 0:00:15]} 9. f4 {[%emt 0:00:07]} h6 {[%emt 0:00:37]} 10. Nxc6 {[%emt 0:00:09]} bxc6 {[%emt 0:00:37]} 11. Bxf6 {[%emt 0:00:01]} Bxf6 {[%emt 0:00:07]} 12. Qxd6 {[%emt 0:00:03]} Qb6 {[%emt 0:00:11]} 13. Qd2 {[%emt 0:02:07]} e5 {[%emt 0:00:15]} 14. g3 {[%emt 0:00:42]} Bg4 {[%emt 0:00:06]} 15. Be2 {[%emt 0:00:25]} Rfd8 {[%emt 0:00:18]} 16. Qe1 {[%emt 0:00:01]} Bxe2 {[%emt 0:01:53]} 17. Qxe2 {[%emt 0:00:05]} exf4 {[%emt 0:00:01]} 18. e5 {[%emt 0:00:08]} f3 {[%emt 0:00:02]} 19. Qxf3 {[%emt 0:00:45]} Bxe5 {[%emt 0:00:03]} 20. Rxd8+ {[%emt 0:00:10]} Rxd8 {[%emt 0:00:04]} 21. Rd1 {[%emt 0:00:18]} Rxd1+ {[%emt 0:00:37]} 22. Nxd1 {[%emt 0:00:02]} f6 {[%emt 0:00:31]} 23. c3 {[%emt 0:00:02]} Qg1 {[%emt 0:00:26]} 24. Qe2 {[%emt 0:00:08]} Qh1 {[%emt 0:00:10]} 25. Kc2 {[%emt 0:00:06]} h5 {[%emt 0:00:09]} 26. Qxh5 {[%emt 0:00:15]} Qe4+ {[%emt 0:00:11]} 27. Kc1 {[%emt 0:00:02]} g6 {[%emt 0:00:08]} 28. Qh6 {[%emt 0:00:14]} g5 {[%emt 0:00:13]} 29. Qh5 {[%emt 0:00:04]} g4 {[%emt 0:00:08]} 30. Qh6 {[%emt 0:00:06]} Qe2 {[%emt 0:00:09]} 31. Qd2 {[%emt 0:00:06]} Qe4 {[%emt 0:00:11]} 32. Nf2 {[%emt 0:00:11]} Qf3 {[%emt 0:00:14]} 33. Qd8+ {[%emt 0:00:06]} Kf7 {[%emt 0:00:02]} 34. Qd7+ {[%emt 0:00:02]} Kf8 {[%emt 0:00:01]} 35. Nxg4 {[%emt 0:00:11]} Bxc3 {[%emt 0:00:26]} 36. bxc3 {[%emt 0:00:13]} Qxc3+ {[%emt 0:00:03]} 37. Kd1 {[%emt 0:00:02]} Qa1+ {[%emt 0:00:12]} 38. Ke2 {[%emt 0:00:03]} Qxa2+ {[%emt 0:00:13]} 39. Kf3 {[%emt 0:00:04]} 1-0

[Event "CCT Chessable Masters Play-In 2025"]
[Site "Online"]
[Date "2025.02.17"]
[Round "3.79"]
[White "Onyshchuk, Volodymyr"]
[Black "Batsuren, Dambasuren"]
[Result "1/2-1/2"]
[ECO "B15"]
[WhiteElo "2610"]
[BlackElo "2537"]
[PlyCount "114"]
[EventDate "2025.02.13"]
[EventType "swiss"]
[EventCountry "NET"]
[TimeControl "600"]
[WhiteClock "0:02:21"]
[BlackClock "0:01:07"]

1. e4 {[%emt 0:00:02]} c6 {[%emt 0:00:12]} 2. d4 {[%emt 0:00:03]} d5 {[%emt 0:00:00]} 3. Nc3 {[%emt 0:00:01]} dxe4 {[%emt 0:00:05]} 4. Nxe4 {[%emt 0:00:01]} Nf6 {[%emt 0:00:01]} 5. Nxf6+ {[%emt 0:00:02]} exf6 {[%emt 0:00:00]} 6. c3 {[%emt 0:00:01]} Bd6 {[%emt 0:00:00]} 7. Bd3 {[%emt 0:00:01]} O-O {[%emt 0:00:01]} 8. Qc2 {[%emt 0:00:02]} Re8+ {[%emt 0:00:02]} 9. Ne2 {[%emt 0:00:01]} h5 {[%emt 0:00:02]} 10. h3 {[%emt 0:00:04]} Nd7 {[%emt 0:00:11]} 11. Bd2 {[%emt 0:00:14]} Nf8 {[%emt 0:00:06]} 12. O-O {[%emt 0:00:13]} h4 {[%emt 0:01:16]} 13. Rae1 {[%emt 0:00:04]} Bd7 {[%emt 0:00:05]} 14. Qc1 {[%emt 0:00:30]} Qc7 {[%emt 0:00:17]} 15. Bf4 {[%emt 0:00:13]} Ng6 {[%emt 0:00:12]} 16. Bxd6 {[%emt 0:00:10]} Qxd6 {[%emt 0:00:00]} 17. Bxg6 {[%emt 0:00:17]} fxg6 {[%emt 0:00:00]} 18. Qf4 {[%emt 0:00:01]} Qxf4 {[%emt 0:00:16]} 19. Nxf4 {[%emt 0:00:01]} g5 {[%emt 0:00:01]} 20. Nd3 {[%emt 0:00:01]} Bf5 {[%emt 0:00:05]} 21. Nc1 {[%emt 0:00:03]} g4 {[%emt 0:00:40]} 22. hxg4 {[%emt 0:00:05]} Bxg4 {[%emt 0:00:01]} 23. f3 {[%emt 0:00:01]} Bf5 {[%emt 0:00:05]} 24. Kf2 {[%emt 0:00:00]} Kf7 {[%emt 0:00:03]} 25. Nb3 {[%emt 0:00:08]} b6 {[%emt 0:00:10]} 26. Nd2 {[%emt 0:00:02]} Bd3 {[%emt 0:00:30]} 27. Rh1 {[%emt 0:00:02]} g5 {[%emt 0:00:06]} 28. Ne4 {[%emt 0:00:08]} Bxe4 {[%emt 0:00:44]} 29. fxe4 {[%emt 0:00:01]} Kg6 {[%emt 0:00:01]} 30. g3 {[%emt 0:00:01]} hxg3+ {[%emt 0:00:14]} 31. Kxg3 {[%emt 0:00:01]} Rh8 {[%emt 0:00:00]} 32. a4 {[%emt 0:00:03]} Rae8 {[%emt 0:00:08]} 33. Kf3 {[%emt 0:00:05]} a5 {[%emt 0:00:45]} 34. c4 {[%emt 0:00:14]} Kf7 {[%emt 0:00:14]} 35. d5 {[%emt 0:00:10]} Ke7 {[%emt 0:00:28]} 36. e5 {[%emt 0:00:44]} Rxh1 {[%emt 0:00:30]} 37. Rxh1 {[%emt 0:00:23]} cxd5 {[%emt 0:00:12]} 38. cxd5 {[%emt 0:00:02]} fxe5 {[%emt 0:00:02]} 39. Ke4 {[%emt 0:00:20]} Kd6 {[%emt 0:00:24]} 40. Rh6+ {[%emt 0:00:03]} Kc5 {[%emt 0:00:10]} 41. Rc6+ {[%emt 0:00:03]} Kb4 {[%emt 0:00:00]} 42. Rxb6+ {[%emt 0:00:01]} Kxa4 {[%emt 0:00:00]} 43. d6 {[%emt 0:00:09]} g4 {[%emt 0:00:01]} 44. d7 {[%emt 0:00:16]} Rd8 {[%emt 0:00:01]} 45. Rb7 {[%emt 0:00:12]} g3 {[%emt 0:00:12]} 46. Kf3 {[%emt 0:00:04]} Rg8 {[%emt 0:00:00]} 47. Kg2 {[%emt 0:00:05]} e4 {[%emt 0:00:00]} 48. Rc7 {[%emt 0:00:03]} Rd8 {[%emt 0:00:02]} 49. Rb7 {[%emt 0:00:55]} Rg8 {[%emt 0:00:03]} 50. b3+ {[%emt 0:00:54]} Ka3 {[%emt 0:00:01]} 51. Rb5 {[%emt 0:00:01]} Rd8 {[%emt 0:00:08]} 52. Rxa5+ {[%emt 0:00:11]} Kxb3 {[%emt 0:00:00]} 53. Ra7 {[%emt 0:00:00]} Kc4 {[%emt 0:00:03]} 54. Kxg3 {[%emt 0:00:02]} Kd5 {[%emt 0:00:01]} 55. Kf4 {[%emt 0:00:02]} Ke6 {[%emt 0:00:01]} 56. Kxe4 {[%emt 0:00:01]} Rxd7 {[%emt 0:00:01]} 57. Rxd7 {[%emt 0:00:02]} Kxd7 {[%emt 0:00:00]} 1/2-1/2

[Event "CCT Chessable Masters Play-In 2025"]
[Site "Online"]
[Date "2025.02.17"]
[Round "3.80"]
[White "Zhukova, Natalia"]
[Black "Quintiliano, Renato R."]
[Result "0-1"]
[ECO "A33"]
[WhiteElo "2306"]
[BlackElo "2515"]
[PlyCount "44"]
[EventDate "2025.02.13"]
[EventType "swiss"]
[EventCountry "NET"]
[TimeControl "600"]
[WhiteClock "0:03:51"]
[BlackClock "0:06:55"]

1. c4 {[%emt 0:00:01]} c5 {[%emt 0:00:07]} 2. Nf3 {[%emt 0:00:02]} Nc6 {[%emt 0:00:02]} 3. d4 {[%emt 0:00:02]} cxd4 {[%emt 0:00:01]} 4. Nxd4 {[%emt 0:00:00]} Nf6 {[%emt 0:00:02]} 5. Nc3 {[%emt 0:00:03]} e6 {[%emt 0:00:03]} 6. g3 {[%emt 0:00:01]} d5 {[%emt 0:00:13]} 7. Bg2 {[%emt 0:00:34]} Bc5 {[%emt 0:00:07]} 8. Nb3 {[%emt 0:00:06]} Bb6 {[%emt 0:00:10]} 9. cxd5 {[%emt 0:00:03]} exd5 {[%emt 0:00:01]} 10. Nxd5 {[%emt 0:00:06]} Be6 {[%emt 0:00:06]} 11. Nxf6+ {[%emt 0:00:39]} Qxf6 {[%emt 0:00:03]} 12. O-O {[%emt 0:00:00]} O-O {[%emt 0:00:12]} 13. Nd2 {[%emt 0:01:12]} Rfd8 {[%emt 0:00:41]} 14. Ne4 {[%emt 0:00:10]} Qg6 {[%emt 0:00:01]} 15. Qe1 {[%emt 0:00:22]} Nd4 {[%emt 0:00:07]} 16. Bf4 {[%emt 0:01:42]} Nc2 {[%emt 0:00:15]} 17. Qc3 {[%emt 0:00:03]} Rac8 {[%emt 0:00:07]} 18. Qe5 {[%emt 0:00:18]} Nxa1 {[%emt 0:00:22]} 19. Rxa1 {[%emt 0:00:00]} Rd5 {[%emt 0:00:14]} 20. Nf6+ {[%emt 0:00:24]} gxf6 {[%emt 0:00:02]} 21. Qxd5 {[%emt 0:00:06]} Bxd5 {[%emt 0:00:02]} 22. Bxd5 {[%emt 0:00:15]} Qc2 {[%emt 0:00:07]} 0-1

[Event "CCT Chessable Masters Play-In 2025"]
[Site "Online"]
[Date "2025.02.17"]
[Round "4.1"]
[White "Duda, Jan-Krzysztof"]
[Black "Martirosyan, Haik M."]
[Result "1-0"]
[ECO "D00"]
[WhiteElo "2739"]
[BlackElo "2645"]
[PlyCount "115"]
[EventDate "2025.02.13"]
[EventType "swiss"]
[EventCountry "NET"]
[TimeControl "600"]
[WhiteClock "0:01:11"]
[BlackClock "0:00:23"]

1. d4 {[%emt 0:00:01]} Nf6 {[%emt 0:00:02]} 2. Bf4 {[%emt 0:00:01]} d5 {[%emt 0:00:04]} 3. e3 {[%emt 0:00:01]} c5 {[%emt 0:00:02]} 4. c3 {[%emt 0:00:03]} Nc6 {[%emt 0:00:03]} 5. Nd2 {[%emt 0:00:01]} cxd4 {[%emt 0:00:26]} 6. exd4 {[%emt 0:00:04]} Bf5 {[%emt 0:00:02]} 7. Ngf3 {[%emt 0:00:07]} e6 {[%emt 0:00:01]} 8. Nh4 {[%emt 0:00:10]} Bg4 {[%emt 0:00:05]} 9. Qb3 {[%emt 0:00:04]} Bd6 {[%emt 0:00:35]} 10. Be3 {[%emt 0:00:38]} Qc7 {[%emt 0:00:22]} 11. h3 {[%emt 0:00:16]} Bh5 {[%emt 0:00:01]} 12. g4 {[%emt 0:00:23]} Bg6 {[%emt 0:00:01]} 13. Nxg6 {[%emt 0:00:01]} hxg6 {[%emt 0:00:01]} 14. Bg2 {[%emt 0:00:01]} b5 {[%emt 0:00:14]} 15. a4 {[%emt 0:00:56]} b4 {[%emt 0:00:10]} 16. c4 {[%emt 0:00:05]} Rc8 {[%emt 0:00:39]} 17. cxd5 {[%emt 0:00:16]} Na5 {[%emt 0:00:37]} 18. Qd3 {[%emt 0:00:05]} Nxd5 {[%emt 0:00:14]} 19. Bxd5 {[%emt 0:00:03]} exd5 {[%emt 0:00:01]} 20. Qb5+ {[%emt 0:00:02]} Nc6 {[%emt 0:00:11]} 21. Qxd5 {[%emt 0:00:20]} Ne7 {[%emt 0:00:16]} 22. Qb5+ {[%emt 0:00:06]} Kf8 {[%emt 0:00:11]} 23. Ne4 {[%emt 0:00:05]} Bf4 {[%emt 0:01:14]} 24. Rc1 {[%emt 0:01:31]} Qb8 {[%emt 0:00:28]} 25. Rxc8+ {[%emt 0:00:20]} Nxc8 {[%emt 0:00:00]} 26. Qd5 {[%emt 0:00:45]} Bc7 {[%emt 0:01:03]} 27. Ng5 {[%emt 0:00:03]} Nd6 {[%emt 0:00:02]} 28. O-O {[%emt 0:00:02]} Qb7 {[%emt 0:00:29]} 29. Qxb7 {[%emt 0:00:31]} Nxb7 {[%emt 0:00:00]} 30. Rc1 {[%emt 0:00:01]} Bd8 {[%emt 0:00:00]} 31. Rc8 {[%emt 0:00:16]} Ke7 {[%emt 0:00:11]} 32. Ra8 {[%emt 0:00:15]} Nd6 {[%emt 0:00:19]} 33. Rxa7+ {[%emt 0:00:04]} Ke8 {[%emt 0:00:02]} 34. Ra8 {[%emt 0:00:04]} Kd7 {[%emt 0:00:11]} 35. d5 {[%emt 0:00:07]} Re8 {[%emt 0:00:11]} 36. Ra7+ {[%emt 0:00:03]} Bc7 {[%emt 0:00:09]} 37. Bb6 {[%emt 0:00:03]} Re1+ {[%emt 0:00:02]} 38. Kg2 {[%emt 0:00:01]} Rc1 {[%emt 0:00:00]} 39. Kf3 {[%emt 0:00:13]} b3 {[%emt 0:00:06]} 40. Ne4 {[%emt 0:00:07]} Ne8 {[%emt 0:00:15]} 41. d6 {[%emt 0:00:07]} Nxd6 {[%emt 0:00:01]} 42. Nxd6 {[%emt 0:00:03]} Kxd6 {[%emt 0:00:00]} 43. Rxc7 {[%emt 0:00:03]} Rxc7 {[%emt 0:00:00]} 44. Bxc7+ {[%emt 0:00:00]} Kxc7 {[%emt 0:00:00]} 45. Ke4 {[%emt 0:00:01]} Kb6 {[%emt 0:00:01]} 46. Kd5 {[%emt 0:00:00]} Ka5 {[%emt 0:00:02]} 47. g5 {[%emt 0:00:02]} Kxa4 {[%emt 0:00:02]} 48. Kc4 {[%emt 0:00:01]} f6 {[%emt 0:00:03]} 49. f4 {[%emt 0:00:04]} fxg5 {[%emt 0:00:15]} 50. fxg5 {[%emt 0:00:00]} Ka5 {[%emt 0:00:00]} 51. Kxb3 {[%emt 0:00:01]} Kb5 {[%emt 0:00:01]} 52. Kc3 {[%emt 0:00:01]} Kc5 {[%emt 0:00:02]} 53. b4+ {[%emt 0:00:01]} Kd5 {[%emt 0:00:00]} 54. Kb3 {[%emt 0:00:04]} Ke5 {[%emt 0:00:01]} 55. b5 {[%emt 0:00:01]} Kd6 {[%emt 0:00:06]} 56. Kc4 {[%emt 0:00:01]} Kc7 {[%emt 0:00:01]} 57. Kc5 {[%emt 0:00:02]} Kb7 {[%emt 0:00:02]} 58. h4 {[%emt 0:00:02]} 1-0

[Event "CCT Chessable Masters Play-In 2025"]
[Site "Online"]
[Date "2025.02.17"]
[Round "4.2"]
[White "Gledura, Benjamin"]
[Black "Tabatabaei, M. Amin"]
[Result "1/2-1/2"]
[ECO "D12"]
[WhiteElo "2659"]
[BlackElo "2666"]
[PlyCount "83"]
[EventDate "2025.02.13"]
[EventType "swiss"]
[EventCountry "NET"]
[TimeControl "600"]
[WhiteClock "0:04:25"]
[BlackClock "0:03:22"]

1. d4 {[%emt 0:00:01]} d5 {[%emt 0:00:04]} 2. c4 {[%emt 0:00:01]} c6 {[%emt 0:00:00]} 3. Nf3 {[%emt 0:00:03]} Nf6 {[%emt 0:00:02]} 4. e3 {[%emt 0:00:02]} Bf5 {[%emt 0:00:01]} 5. Nc3 {[%emt 0:00:02]} e6 {[%emt 0:00:01]} 6. Nh4 {[%emt 0:00:10]} Bg6 {[%emt 0:00:02]} 7. Nxg6 {[%emt 0:00:05]} hxg6 {[%emt 0:00:01]} 8. Qd3 {[%emt 0:00:11]} Nbd7 {[%emt 0:00:05]} 9. g3 {[%emt 0:00:05]} Be7 {[%emt 0:00:35]} 10. Bg2 {[%emt 0:00:04]} Nb6 {[%emt 0:00:06]} 11. cxd5 {[%emt 0:00:05]} cxd5 {[%emt 0:00:04]} 12. O-O {[%emt 0:00:03]} Rc8 {[%emt 0:00:04]} 13. b3 {[%emt 0:00:06]} O-O {[%emt 0:00:05]} 14. Bb2 {[%emt 0:00:06]} a6 {[%emt 0:00:07]} 15. Rfc1 {[%emt 0:00:02]} Bd6 {[%emt 0:00:06]} 16. Rc2 {[%emt 0:00:32]} Qe7 {[%emt 0:00:20]} 17. Rd1 {[%emt 0:00:13]} Rc7 {[%emt 0:00:06]} 18. Nb1 {[%emt 0:00:10]} Rxc2 {[%emt 0:00:05]} 19. Qxc2 {[%emt 0:00:00]} Rc8 {[%emt 0:00:02]} 20. Qd3 {[%emt 0:00:01]} g5 {[%emt 0:00:08]} 21. h3 {[%emt 0:00:05]} Nbd7 {[%emt 0:00:35]} 22. Rc1 {[%emt 0:00:07]} Qd8 {[%emt 0:00:02]} 23. Rxc8 {[%emt 0:00:05]} Qxc8 {[%emt 0:00:00]} 24. Nc3 {[%emt 0:00:01]} Qc7 {[%emt 0:00:12]} 25. g4 {[%emt 0:00:02]} Nf8 {[%emt 0:00:08]} 26. e4 {[%emt 0:00:16]} dxe4 {[%emt 0:00:31]} 27. Nxe4 {[%emt 0:00:00]} Nxe4 {[%emt 0:00:22]} 28. Bxe4 {[%emt 0:00:00]} Nd7 {[%emt 0:00:12]} 29. Qc4 {[%emt 0:00:14]} Qb8 {[%emt 0:00:20]} 30. d5 {[%emt 0:00:23]} e5 {[%emt 0:00:03]} 31. Kg2 {[%emt 0:00:16]} g6 {[%emt 0:00:03]} 32. a4 {[%emt 0:00:05]} Qd8 {[%emt 0:00:04]} 33. Bc3 {[%emt 0:00:08]} Nc5 {[%emt 0:00:20]} 34. f3 {[%emt 0:00:08]} Qc7 {[%emt 0:00:30]} 35. Bd2 {[%emt 0:00:40]} b5 {[%emt 0:00:36]} 36. axb5 {[%emt 0:00:07]} axb5 {[%emt 0:00:00]} 37. Qc2 {[%emt 0:00:01]} Qe7 {[%emt 0:00:04]} 38. Be3 {[%emt 0:00:19]} Kg7 {[%emt 0:00:03]} 39. Qc3 {[%emt 0:00:26]} Kg8 {[%emt 0:00:27]} 40. Qc2 {[%emt 0:00:06]} Kg7 {[%emt 0:00:02]} 41. Qc3 {[%emt 0:00:03]} Kg8 {[%emt 0:00:00]} 42. Qc2 {[%emt 0:00:01]} 1/2-1/2

[Event "CCT Chessable Masters Play-In 2025"]
[Site "Online"]
[Date "2025.02.17"]
[Round "4.3"]
[White "Sargsyan, Shant"]
[Black "Chigaev, Maksim"]
[Result "1/2-1/2"]
[ECO "B06"]
[WhiteElo "2660"]
[BlackElo "2632"]
[PlyCount "78"]
[EventDate "2025.02.13"]
[EventType "swiss"]
[EventCountry "NET"]
[TimeControl "600"]
[WhiteClock "0:04:40"]
[BlackClock "0:04:11"]

1. d4 {[%emt 0:00:01]} Nf6 {[%emt 0:00:15]} 2. Nf3 {[%emt 0:00:00]} g6 {[%emt 0:00:10]} 3. Nc3 {[%emt 0:00:01]} Bg7 {[%emt 0:00:16]} 4. e4 {[%emt 0:00:02]} d5 {[%emt 0:00:01]} 5. exd5 {[%emt 0:00:06]} Nxd5 {[%emt 0:00:00]} 6. Nxd5 {[%emt 0:00:01]} Qxd5 {[%emt 0:00:01]} 7. c3 {[%emt 0:00:01]} O-O {[%emt 0:00:10]} 8. Qb3 {[%emt 0:00:09]} Be6 {[%emt 0:00:17]} 9. Qxd5 {[%emt 0:00:16]} Bxd5 {[%emt 0:00:01]} 10. Be2 {[%emt 0:00:03]} Nd7 {[%emt 0:00:02]} 11. Be3 {[%emt 0:00:05]} e5 {[%emt 0:00:33]} 12. dxe5 {[%emt 0:00:01]} Nxe5 {[%emt 0:00:01]} 13. Nxe5 {[%emt 0:00:01]} Bxe5 {[%emt 0:00:00]} 14. O-O {[%emt 0:00:00]} b6 {[%emt 0:00:04]} 15. Rfd1 {[%emt 0:00:03]} Be6 {[%emt 0:00:13]} 16. Bd4 {[%emt 0:00:20]} Bxd4 {[%emt 0:00:04]} 17. Rxd4 {[%emt 0:00:01]} Rfd8 {[%emt 0:00:08]} 18. b3 {[%emt 0:02:24]} Rxd4 {[%emt 0:00:22]} 19. cxd4 {[%emt 0:00:00]} a5 {[%emt 0:00:43]} 20. Bf3 {[%emt 0:00:19]} Rd8 {[%emt 0:00:03]} 21. Rd1 {[%emt 0:00:01]} Bd5 {[%emt 0:00:19]} 22. Rc1 {[%emt 0:00:25]} Bxf3 {[%emt 0:00:17]} 23. gxf3 {[%emt 0:00:00]} Rd7 {[%emt 0:00:08]} 24. Kf1 {[%emt 0:00:13]} Kg7 {[%emt 0:00:12]} 25. Rc6 {[%emt 0:00:05]} Kh6 {[%emt 0:00:34]} 26. d5 {[%emt 0:00:06]} Kg7 {[%emt 0:00:33]} 27. d6 {[%emt 0:00:18]} Rxd6 {[%emt 0:00:02]} 28. Rxc7 {[%emt 0:00:01]} Rd2 {[%emt 0:00:03]} 29. Rc6 {[%emt 0:00:05]} Rxa2 {[%emt 0:00:09]} 30. Rxb6 {[%emt 0:00:01]} a4 {[%emt 0:00:01]} 31. bxa4 {[%emt 0:00:00]} Rxa4 {[%emt 0:00:01]} 32. Kg2 {[%emt 0:00:01]} Ra7 {[%emt 0:00:01]} 33. Rc6 {[%emt 0:00:01]} Rb7 {[%emt 0:00:02]} 34. Ra6 {[%emt 0:00:01]} Re7 {[%emt 0:00:01]} 35. Rb6 {[%emt 0:00:02]} h5 {[%emt 0:00:00]} 36. Ra6 {[%emt 0:00:03]} Rd7 {[%emt 0:00:00]} 37. Rb6 {[%emt 0:00:01]} Re7 {[%emt 0:00:01]} 38. Ra6 {[%emt 0:00:01]} Rd7 {[%emt 0:00:00]} 39. Rb6 {[%emt 0:00:01]} Re7 {[%emt 0:00:01]} 1/2-1/2

[Event "CCT Chessable Masters Play-In 2025"]
[Site "Online"]
[Date "2025.02.17"]
[Round "4.4"]
[White "Puranik, Abhimanyu"]
[Black "Vachier-Lagrave, Maxime"]
[Result "0-1"]
[ECO "B22"]
[WhiteElo "2636"]
[BlackElo "2729"]
[PlyCount "48"]
[EventDate "2025.02.13"]
[EventType "swiss"]
[EventCountry "NET"]
[TimeControl "600"]
[WhiteClock "0:07:11"]
[BlackClock "0:07:34"]

1. e4 {[%emt 0:00:01]} c5 {[%emt 0:00:01]} 2. Be2 {[%emt 0:00:00]} Nc6 {[%emt 0:00:15]} 3. f4 {[%emt 0:00:03]} g6 {[%emt 0:00:02]} 4. Nf3 {[%emt 0:00:01]} Bg7 {[%emt 0:00:01]} 5. O-O {[%emt 0:00:02]} Nf6 {[%emt 0:00:02]} 6. d3 {[%emt 0:00:01]} O-O {[%emt 0:00:02]} 7. c3 {[%emt 0:00:01]} d6 {[%emt 0:00:03]} 8. h3 {[%emt 0:00:03]} Rb8 {[%emt 0:00:02]} 9. Be3 {[%emt 0:00:02]} b5 {[%emt 0:00:02]} 10. a3 {[%emt 0:00:05]} a5 {[%emt 0:00:03]} 11. Nbd2 {[%emt 0:00:02]} b4 {[%emt 0:00:09]} 12. axb4 {[%emt 0:00:01]} axb4 {[%emt 0:00:00]} 13. d4 {[%emt 0:00:04]} bxc3 {[%emt 0:00:09]} 14. bxc3 {[%emt 0:00:00]} cxd4 {[%emt 0:00:02]} 15. cxd4 {[%emt 0:00:00]} d5 {[%emt 0:00:09]} 16. e5 {[%emt 0:00:03]} Ne4 {[%emt 0:00:01]} 17. Nxe4 {[%emt 0:00:24]} dxe4 {[%emt 0:00:00]} 18. Ng5 {[%emt 0:00:01]} Nb4 {[%emt 0:00:05]} 19. Nxe4 {[%emt 0:00:38]} Bf5 {[%emt 0:00:02]} 20. Bf3 {[%emt 0:00:03]} Nd5 {[%emt 0:00:04]} 21. Ra3 {[%emt 0:00:20]} Rb4 {[%emt 0:01:06]} 22. Bf2 {[%emt 0:00:29]} Nxf4 {[%emt 0:00:02]} 23. Qd2 {[%emt 0:00:11]} Nd5 {[%emt 0:00:01]} 24. Ra5 {[%emt 0:00:14]} Qxa5 {[%emt 0:00:03]} 0-1

[Event "CCT Chessable Masters Play-In 2025"]
[Site "Online"]
[Date "2025.02.17"]
[Round "4.5"]
[White "Aravindh, Chithambaram VR."]
[Black "Anton Guijarro, David"]
[Result "0-1"]
[ECO "A07"]
[WhiteElo "2729"]
[BlackElo "2668"]
[PlyCount "68"]
[EventDate "2025.02.13"]
[EventType "swiss"]
[EventCountry "NET"]
[TimeControl "600"]
[BlackClock "0:00:18"]

1. g3 {[%emt 0:00:01]} d5 {[%emt 0:00:02]} 2. Nf3 {[%emt 0:00:01]} c5 {[%emt 0:00:03]} 3. b3 {[%emt 0:00:04]} f6 {[%emt 0:00:02]} 4. c4 {[%emt 0:00:41]} d4 {[%emt 0:00:03]} 5. e4 {[%emt 0:00:01]} e5 {[%emt 0:00:09]} 6. d3 {[%emt 0:00:02]} Nc6 {[%emt 0:00:07]} 7. Bg2 {[%emt 0:00:01]} g5 {[%emt 0:00:26]} 8. h4 {[%emt 0:00:19]} g4 {[%emt 0:00:03]} 9. Nh2 {[%emt 0:00:01]} h5 {[%emt 0:00:29]} 10. f3 {[%emt 0:00:15]} Bh6 {[%emt 0:00:12]} 11. fxg4 {[%emt 0:00:26]} Bxc1 {[%emt 0:00:03]} 12. Qxc1 {[%emt 0:00:01]} hxg4 {[%emt 0:00:03]} 13. O-O {[%emt 0:00:03]} Nh6 {[%emt 0:00:22]} 14. Na3 {[%emt 0:00:06]} Be6 {[%emt 0:00:09]} 15. Nc2 {[%emt 0:00:06]} Qe7 {[%emt 0:00:08]} 16. a3 {[%emt 0:00:44]} a5 {[%emt 0:00:29]} 17. Qd2 {[%emt 0:00:02]} Kd7 {[%emt 0:00:11]} 18. Rab1 {[%emt 0:00:24]} Kc7 {[%emt 0:00:55]} 19. Rb2 {[%emt 0:01:14]} f5 {[%emt 0:00:11]} 20. exf5 {[%emt 0:00:10]} Nxf5 {[%emt 0:00:03]} 21. Qe1 {[%emt 0:00:04]} Nxh4 {[%emt 0:01:55]} 22. Bxc6 {[%emt 0:01:13]} bxc6 {[%emt 0:00:22]} 23. Qxe5+ {[%emt 0:00:18]} Kd7 {[%emt 0:00:38]} 24. gxh4 {[%emt 0:00:03]} Qxh4 {[%emt 0:00:08]} 25. Ne1 {[%emt 0:02:15]} g3 {[%emt 0:00:24]} 26. Nef3 {[%emt 0:00:27]} gxh2+ {[%emt 0:00:48]} 27. Rxh2 {[%emt 0:00:01]} Rhg8+ {[%emt 0:00:00]} 28. Kh1 {[%emt 0:00:05]} Qe7 {[%emt 0:00:01]} 29. Re1 {[%emt 0:00:18]} Raf8 {[%emt 0:00:04]} 30. Qe4 {[%emt 0:00:08]} Kc7 {[%emt 0:00:28]} 31. b4 {[%emt 0:00:01]} Qf6 {[%emt 0:00:38]} 32. Rf1 {[%emt 0:00:07]} Bg4 {[%emt 0:00:03]} 33. Rhf2 {[%emt 0:00:14]} Bxf3+ {[%emt 0:00:02]} 34. Rxf3 Qh6+ {[%emt 0:00:01]} 0-1